fUST/lending_fUST_20240121
["ID","MTS","AMOUNT","RATE_DAILY","PERIOD"]
[312350848,1705813840161,-680.22,0.00030136,2]
[312350849,1705813840169,-680.22,0.00030136,2]
[312350850,1705813840179,-680.22,0.00030136,2]
[312350851,1705813840188,-680.22,0.00030136,2]
[312350852,1705813840196,-680.22,0.00030136,2]
[312350853,1705813840206,-680.22,0.00030136,2]
[312350854,1705813840214,-680.22,0.00030136,2]
[312350855,1705813840223,-500.0,0.00030136,2]
[312350856,1705813840232,-680.22,0.00030136,2]
[312350857,1705813840241,-500.0,0.00030136,2]
[312350858,1705813840250,-155.97291343,0.00030136,2]
[312350859,1705813840259,-500.0,0.00030136,2]
[312350860,1705813840268,-500.0,0.00030136,2]
[312350861,1705813840277,-695.38,0.00030136,2]
[312350862,1705813840285,-500.0,0.00030136,2]
[312350863,1705813840296,-500.0,0.00030136,2]
[312350865,1705813840305,-539.77,0.00030136,2]
[312350866,1705813840314,-1000.0,0.00030136,2]
[312350868,1705813840323,-500.0,0.00030136,2]
[312350869,1705813840332,-500.0,0.00030136,2]
[312350870,1705813840342,-800.68,0.00030136,2]
[312350871,1705813840351,-500.0,0.00030136,2]
[312350872,1705813840360,-2276.25,0.00030136,2]
[312350873,1705813840369,-500.0,0.00030136,2]
[312350874,1705813840378,-500.0,0.00030136,2]
[312350875,1705813840387,-500.0,0.00030136,2]
[312350876,1705813840397,-500.0,0.00030136,2]
[312350877,1705813840406,-500.0,0.00030136,2]
[312350878,1705813840416,-522.1,0.00030136,2]
[312350879,1705813840426,-719.21,0.00030136,2]
[312350880,1705813840436,-3168.84,0.00030136,2]
[312350881,1705813840446,-500.0,0.00030136,2]
[312350882,1705813840458,-500.0,0.00030136,2]
[312350883,1705813840468,-500.0,0.00030136,2]
[312350884,1705813840481,-1414.67,0.00030136,2]
[312350885,1705813840491,-500.0,0.00030136,2]
[312350886,1705813840501,-500.2910152,0.00030136,2]
[312350887,1705813840511,-500.0,0.00030136,2]
[312350888,1705813840521,-661.29,0.00030136,2]
[312350889,1705813840531,-1003.97447176,0.00030136,5]
[312350890,1705813840654,-500.0,0.00030136,2]
[312350891,1705813840664,-500.0,0.00030136,2]
[312350892,1705813840675,-500.0,0.00030136,2]
[312350893,1705813840687,-503.90362874,0.00030136,2]
[312350894,1705813840699,-500.0,0.00030136,2]
[312350895,1705813840710,-500.0,0.00030136,2]
[312350896,1705813840719,-356.95147296,0.00030136,2]
[312350897,1705813840729,-500.0,0.00030136,2]
[312350898,1705813840739,-500.0,0.00030136,2]
[312350899,1705813840748,-500.0,0.00030136,2]
[312350900,1705813840758,-500.0,0.00030136,2]
[312350901,1705813840767,-896.54,0.00030136,2]
[312350902,1705813840776,-328.9543971,0.00030136,2]
[312350903,1705813840785,-1657.95,0.00030136,2]
[312350904,1705813840795,-500.0,0.00030136,2]
[312350905,1705813840804,-500.0,0.00030136,2]
[312350906,1705813840814,-500.0,0.00030136,2]
[312350907,1705813840824,-500.0,0.00030136,2]
[312350908,1705813840834,-500.0,0.00030136,2]
[312350909,1705813840844,-500.0,0.00030136,2]
[312350910,1705813840854,-500.0,0.00030136,2]
[312350911,1705813840864,-518.34072007,0.00030136,2]
[312350912,1705813840874,-500.0,0.00030136,2]
[312350913,1705813840883,-500.0,0.00030136,2]
[312350914,1705813840892,-205.62504191,0.00030136,2]
[312350915,1705813840902,-500.0,0.00030136,2]
[312350916,1705813840912,-500.52924623,0.00030136,2]
[312350917,1705813840926,-78.3976479,0.00030136,2]
[312350918,1705813840946,-421.6023521,0.00030136,2]
[312350919,1705813840956,-500.0,0.00030136,2]
[312350920,1705813840966,-500.0,0.00030136,2]
[312350921,1705813840975,-501.44958437,0.00030136,2]
[312350922,1705813840984,-507.4,0.00030136,2]
[312350923,1705813840994,-500.0,0.00030136,2]
[312350924,1705813841004,-500.0,0.00030136,2]
[312350925,1705813841015,-500.29208664,0.00030136,2]
[312350926,1705813841024,-500.0,0.00030136,2]
[312350927,1705813841034,-500.0,0.00030136,2]
[312350928,1705813841043,-500.0,0.00030136,2]
[312350929,1705813841054,-500.0,0.00030136,2]
[312350930,1705813841063,-500.82235622,0.00030136,2]
[312350931,1705813841073,-500.0,0.00030136,2]
[312350932,1705813841082,-503.24194096,0.00030136,2]
[312350933,1705813841092,-500.0,0.00030136,2]
[312350934,1705813841101,-1367.42,0.00030136,2]
[312350935,1705813841110,-500.0,0.00030136,2]
[312350936,1705813841120,-515.34139418,0.00030136,2]
[312350937,1705813841130,-150.0,0.00030136,2]
[312350938,1705813841139,-500.0,0.00030136,2]
[312350939,1705813841150,-734.88,0.00030136,2]
[312350940,1705813841159,-646.44,0.00030136,2]
[312350941,1705813841168,-500.0,0.00030136,2]
[312350942,1705813841177,-500.0,0.00030136,2]
[312350943,1705813841188,-500.0,0.00030136,2]
[312350944,1705813841198,-500.85348377,0.00030136,2]
[312350945,1705813841208,-1469.77,0.00030136,2]
[312350946,1705813841218,-504.03597928,0.00030136,2]
[312350947,1705813841228,-500.0,0.00030136,2]
[312350948,1705813841239,-500.0,0.00030136,2]
[312350949,1705813841249,-501.49602513,0.00030136,2]
[312350950,1705813841259,-500.32661163,0.00030136,2]
[312350951,1705813841268,-500.96958819,0.00030136,2]
[312350952,1705813841278,-500.0,0.00030136,2]
[312350953,1705813841288,-849.35,0.00030136,2]
[312350954,1705813841298,-500.0,0.00030136,2]
[312350955,1705813841307,-680.28,0.00030136,2]
[312350956,1705813841317,-500.0,0.00030136,2]
[312350957,1705813841327,-500.0,0.00030136,2]
[312350958,1705813841336,-500.0,0.00030136,2]
[312350959,1705813841346,-2059.73,0.00030136,2]
[312350960,1705813841356,-914.69,0.00030136,2]
[312350961,1705813841365,-569.94,0.00030136,2]
[312350962,1705813841374,-500.0,0.00030136,2]
[312350963,1705813841384,-500.0,0.00030136,2]
[312350964,1705813841395,-500.0,0.00030136,2]
[312350965,1705813841404,-500.0,0.00030136,2]
[312350966,1705813841413,-1291.51,0.00030136,2]
[312350967,1705813841422,-500.13735604,0.00030136,2]
[312350968,1705813841431,-6248.4,0.00030136,2]
[312350969,1705813841442,-500.0,0.00030136,2]
[312350970,1705813841453,-500.0,0.00030136,2]
[312350971,1705813841463,-8854.6,0.00030136,2]
[312350972,1705813841473,-500.0,0.00030136,2]
[312350973,1705813841482,-500.0,0.00030136,2]
[312350974,1705813841491,-26771.03,0.00030136,2]
[312350975,1705813841501,-3157.47,0.00030136,2]
[312350976,1705813841510,-500.0,0.00030136,2]
[312350977,1705813841521,-500.0,0.00030136,2]
[312350978,1705813841530,-237.04279308,0.00030136,2]
[312350979,1705813841539,-500.0,0.00030136,2]
[312350980,1705813841550,-500.0,0.00030136,2]
[312350981,1705813841560,-500.0,0.00030136,2]
[312350982,1705813841571,-500.0,0.00030136,2]
[312350983,1705813841580,-500.0,0.00030136,2]
[312350984,1705813841591,-500.0,0.00030136,2]
[312350985,1705813841600,-500.0,0.00030136,2]
[312350986,1705813841609,-500.0,0.00030136,2]
[312350987,1705813841618,-500.0,0.00030136,2]
[312350988,1705813841629,-500.0,0.00030136,2]
[312350989,1705813841639,-1166.99,0.00030136,2]
[312350990,1705813841648,-500.0,0.00030136,2]
[312350991,1705813841659,-470.12320237,0.00030136,2]
[312350992,1705813841683,-2215.0,0.00030136,2]
[312350993,1705813841693,-545.75,0.00030136,2]
[312350994,1705813841703,-500.0,0.00030136,2]
[312350995,1705813841714,-500.0,0.00030136,2]
[312350996,1705813841724,-500.0,0.00030136,2]
[312350997,1705813841734,-500.0,0.00030136,7]
[312350998,1705813841744,-500.0,0.00030136,2]
[312350999,1705813841755,-500.0,0.00030136,2]
[312351000,1705813841765,-500.0,0.00030136,2]
[312351001,1705813841774,-500.0,0.00030136,2]
[312351002,1705813841784,-501.20678508,0.00030136,2]
[312351003,1705813841794,-500.0,0.00030136,2]
[312351004,1705813841804,-500.0,0.00030136,2]
[312351005,1705813841815,-1249.0,0.00030136,2]
[312351006,1705813841825,-500.42835523,0.00030136,2]
[312351007,1705813841836,-6007.96,0.00030136,2]
[312351008,1705813841846,-272.02965758,0.00030136,2]
[312351009,1705813841856,-500.0,0.00030136,2]
[312351010,1705813841867,-1223.52,0.00030136,2]
[312351011,1705813841877,-725.86,0.00030136,2]
[312351012,1705813841887,-500.0,0.00030136,2]
[312351013,1705813841897,-500.0,0.00030136,2]
[312351014,1705813841907,-7955.44,0.00030136,2]
[312351015,1705813841916,-500.0,0.00030136,2]
[312351016,1705813841930,-500.0,0.00030136,2]
[312351017,1705813841940,-500.0,0.00030136,2]
[312351018,1705813841950,-500.0,0.00030136,2]
[312351019,1705813841959,-8647.75,0.00030136,2]
[312351020,1705813841971,-500.0,0.00030136,2]
[312351021,1705813841981,-500.0,0.00030136,2]
[312351022,1705813841991,-300.67494007,0.00030136,2]
[312351023,1705813842004,-500.3997051,0.00030136,2]
[312351024,1705813842013,-327.16439913,0.00030136,2]
[312351025,1705813842129,-469.45799078,0.00030126,3]
[312351026,1705813842141,-322.49200922,0.00030126,3]
[312351027,1705813842151,-172.83560087,0.00030136,2]
[312351028,1705813842160,-506.2379454,0.00030136,2]
[312351029,1705813842169,-500.0,0.00030136,2]
[312351030,1705813842178,-501.34307339,0.00030136,2]
[312351031,1705813842187,-500.0,0.00030136,2]
[312351032,1705813842196,-500.0,0.00030136,2]
[312351033,1705813842207,-575.51788162,0.00030136,2]
[312351034,1705813842217,-1556.68,0.00030136,2]
[312351035,1705813842226,-500.64255217,0.00030136,2]
[312351036,1705813842235,-501.550524,0.00030136,2]
[312351037,1705813842244,-501.28407885,0.00030136,2]
[312351038,1705813842254,-533.50968731,0.00030136,2]
[312351039,1705813842263,-500.32272694,0.00030136,2]
[312351040,1705813842273,-241.87844402,0.00030136,2]
[312351044,1705813843130,-270.14155598,0.00030136,2]
[312351045,1705813843139,-506.02688792,0.00030136,2]
[312351046,1705813843149,-500.0,0.00030136,2]
[312351047,1705813843159,-521.04936905,0.00030136,2]
[312351055,1705813846162,-221.84362321,0.00030135,4]
[312351056,1705813846172,-109.84471631,0.00030136,2]
[312351057,1705813846183,-2212.59,0.00030136,2]
[312351058,1705813846192,-1000.0,0.00030136,2]
[312351059,1705813846203,-502.67942807,0.00030136,2]
[312351060,1705813846214,-508.23981597,0.00030136,2]
[312351061,1705813846223,-399.98978629,0.00030136,2]
[312351108,1705815039398,-154.73694719,0.00028,4]
[312351109,1705815039408,-1811.41770485,0.00028001,2]
[312351110,1705815039419,-150.0,0.00028036,2]
[312351111,1705815039430,-157.46786289,0.00029136,2]
[312351112,1705815039440,-5000.0,0.00029956,2]
[312351113,1705815039450,-507.9827161,0.00029985,2]
[312351114,1705815039461,-154.73694719,0.0003,2]
[312351115,1705815039471,-150.0,0.0003,4]
[312351116,1705815039481,-1504.634468,0.0003,2]
[312351117,1705815039490,-182.22359774,0.00030036,2]
[312351118,1705815039499,-659.95,0.00030126,3]
[312351119,1705815039509,-549.96,0.00030126,3]
[312351120,1705815039519,-187.13896116,0.00030134,4]
[312351121,1705815039528,-224.68340716,0.00030134,4]
[312351122,1705815039537,-285.64650192,0.00030135,4]
[312351123,1705815039547,-1000.0,0.00030135,3]
[312351124,1705815039556,-1000.0,0.00030135,3]
[312351125,1705815039566,-1000.0,0.00030135,3]
[312351126,1705815039575,-1000.0,0.00030135,3]
[312351127,1705815039586,-500.0,0.00030136,2]
[312351128,1705815039596,-500.0,0.00030136,2]
[312351129,1705815039605,-500.0,0.00030136,2]
[312351130,1705815039614,-500.0,0.00030136,2]
[312351131,1705815039623,-686.69676861,0.00030136,4]
[312351132,1705815039632,-399.87965736,0.00030136,4]
[312351133,1705815039641,-501.69276523,0.00030136,2]
[312351134,1705815039650,-500.0,0.00030136,2]
[312351135,1705815039660,-500.0,0.00030136,2]
[312351136,1705815039670,-500.0,0.00030136,2]
[312351137,1705815039679,-500.0,0.00030136,2]
[312351139,1705815039688,-500.0,0.00030136,2]
[312351141,1705815039698,-500.0,0.00030136,2]
[312351143,1705815039707,-500.0,0.00030136,2]
[312351145,1705815039716,-258.0615188,0.00030136,2]
[312351146,1705815039726,-500.0,0.00030136,2]
[312351147,1705815039735,-500.0,0.00030136,2]
[312351148,1705815039744,-500.0,0.00030136,14]
[312351149,1705815039753,-200.0,0.00030136,2]
[312351150,1705815039763,-200.33382992,0.00030136,2]
[312351151,1705815039772,-401.17906365,0.00030136,2]
[312351152,1705815039782,-500.0,0.00030136,2]
[312351153,1705815039791,-679.37,0.00030136,2]
[312351154,1705815039801,-500.0,0.00030136,2]
[312351155,1705815039811,-500.0,0.00030136,2]
[312351156,1705815039820,-500.0,0.00030136,2]
[312351157,1705815039829,-727.23,0.00030136,2]
[312351158,1705815039840,-511.00954022,0.00030136,2]
[312351159,1705815039850,-501.50658413,0.00030136,2]
[312351160,1705815039859,-500.0,0.00030136,2]
[312351161,1705815039868,-500.0,0.00030136,2]
[312351162,1705815039877,-500.0,0.00030136,2]
[312351163,1705815039886,-502.95,0.00030136,2]
[312351164,1705815039896,-1000.0,0.00030136,2]
[312351165,1705815039906,-500.0,0.00030136,2]
[312351166,1705815039915,-500.0,0.00030136,2]
[312351167,1705815039924,-405.66488664,0.00030136,2]
[312351168,1705815039933,-500.0,0.00030136,2]
[312351169,1705815039943,-504.75953781,0.00030136,2]
[312351170,1705815039953,-500.0,0.00030136,2]
[312351171,1705815039962,-500.0,0.00030136,2]
[312351172,1705815039971,-193.76594272,0.00030136,2]
[312351173,1705815039980,-500.0,0.00030136,2]
[312351174,1705815039989,-500.0,0.00030136,2]
[312351175,1705815039998,-500.0,0.00030136,2]
[312351176,1705815040008,-500.0,0.00030136,2]
[312351177,1705815040017,-500.0,0.00030136,2]
[312351178,1705815040027,-576.64140279,0.00030136,2]
[312351179,1705815040036,-500.0,0.00030136,2]
[312351180,1705815040046,-195.83449237,0.00030136,2]
[312351181,1705815040055,-545.45949726,0.00030136,2]
[312351182,1705815040064,-500.0,0.00030136,2]
[312351183,1705815040073,-364.93854226,0.00030136,2]
[312351184,1705815040083,-500.0,0.00030136,2]
[312351185,1705815040092,-206.72634679,0.00030136,2]
[312351186,1705815040101,-570.40917885,0.00030136,2]
[312351187,1705815040111,-539.81,0.00030136,2]
[312351188,1705815040121,-500.0,0.00030136,2]
[312351189,1705815040131,-500.0,0.00030136,2]
[312351190,1705815040140,-500.0,0.00030136,2]
[312351191,1705815040149,-500.0,0.00030136,2]
[312351192,1705815040159,-500.0,0.00030136,2]
[312351193,1705815040168,-579.35774494,0.00030136,2]
[312351194,1705815040177,-500.0,0.00030136,2]
[312351195,1705815040187,-423.8933239,0.00030136,2]
[312351196,1705815040196,-500.0,0.00030136,2]
[312351197,1705815040205,-506.09445052,0.00030136,2]
[312351198,1705815040215,-720.51,0.00030136,2]
[312351199,1705815040224,-500.0,0.00030136,2]
[312351200,1705815040234,-500.0,0.00030136,2]
[312351201,1705815040243,-500.0,0.00030136,2]
[312351202,1705815040253,-500.0,0.00030136,2]
[312351203,1705815040262,-180.65966044,0.00030136,2]
[312351204,1705815040271,-500.0,0.00030136,2]
[312351205,1705815040280,-500.0,0.00030136,2]
[312351206,1705815040289,-800.62,0.00030136,2]
[312351207,1705815040298,-500.0,0.00030136,2]
[312351208,1705815040307,-500.0,0.00030136,2]
[312351209,1705815040316,-500.0,0.00030136,2]
[312351210,1705815040326,-1355.73,0.00030136,2]
[312351211,1705815040336,-500.0,0.00030136,2]
[312351212,1705815040346,-500.0,0.00030136,2]
[312351213,1705815040355,-500.0,0.00030136,2]
[312351214,1705815040366,-500.0,0.00030136,2]
[312351215,1705815040375,-500.0,0.00030136,2]
[312351216,1705815040385,-500.0,0.00030136,2]
[312351217,1705815040394,-500.0,0.00030136,2]
[312351218,1705815040403,-500.0,0.00030136,2]
[312351219,1705815040414,-500.0,0.00030136,2]
[312351220,1705815040423,-500.0,0.00030136,2]
[312351221,1705815040432,-500.0,0.00030136,2]
[312351222,1705815040441,-500.0,0.00030136,2]
[312351223,1705815040450,-500.0,0.00030136,2]
[312351225,1705815040459,-500.0,0.00030136,2]
[312351227,1705815040468,-500.0,0.00030136,2]
[312351229,1705815040477,-501.47010298,0.00030136,2]
[312351231,1705815040598,-500.0,0.00030136,2]
[312351232,1705815040608,-500.0,0.00030136,2]
[312351233,1705815040617,-500.0,0.00030136,2]
[312351234,1705815040626,-500.0,0.00030136,2]
[312351235,1705815040636,-500.0,0.00030136,2]
[312351236,1705815040644,-500.0,0.00030136,2]
[312351237,1705815040653,-500.0,0.00030136,2]
[312351238,1705815040662,-500.0,0.00030136,2]
[312351239,1705815040682,-507.4,0.00030136,2]
[312351240,1705815040692,-500.0,0.00030136,2]
[312351241,1705815040702,-500.0,0.00030136,2]
[312351242,1705815040712,-504.11017629,0.00030136,2]
[312351243,1705815040722,-721.11,0.00030136,2]
[312351244,1705815040732,-500.0,0.00030136,2]
[312351245,1705815040742,-500.0,0.00030136,2]
[312351246,1705815040752,-500.39620998,0.00030136,2]
[312351247,1705815040762,-515.34139418,0.00030136,2]
[312351248,1705815040772,-505.46815524,0.00030136,2]
[312351249,1705815040781,-500.0,0.00030136,2]
[312351250,1705815040791,-500.0,0.00030136,2]
[312351251,1705815040802,-500.0,0.00030136,2]
[312351252,1705815040812,-500.0,0.00030136,2]
[312351253,1705815040822,-150.0,0.00030136,2]
[312351254,1705815040831,-174.68987219,0.00030136,2]
[312351255,1705815040842,-702.54,0.00030136,2]
[312351256,1705815040851,-500.0,0.00030136,2]
[312351257,1705815040861,-500.0,0.00030136,2]
[312351258,1705815040871,-238.58559193,0.00030136,2]
[312351259,1705815040880,-500.0,0.00030136,2]
[312351260,1705815040890,-500.0,0.00030136,2]
[312351261,1705815040899,-559.89524355,0.00030136,2]
[312351262,1705815040909,-10000.0,0.00030136,10]
[312351263,1705815040919,-500.0,0.00030136,2]
[312351264,1705815040928,-500.0,0.00030136,2]
[312351265,1705815040938,-500.0,0.00030136,2]
[312351266,1705815040947,-500.0,0.00030136,2]
[312351267,1705815040958,-998.80844291,0.00030136,2]
[312351268,1705815040968,-500.0,0.00030136,2]
[312351269,1705815040977,-500.0,0.00030136,2]
[312351270,1705815040987,-500.39935536,0.00030136,2]
[312351271,1705815040997,-500.0,0.00030136,2]
[312351272,1705815041006,-500.0,0.00030136,2]
[312351273,1705815041016,-739.44,0.00030136,2]
[312351274,1705815041026,-508.75647265,0.00030136,2]
[312351275,1705815041036,-500.0,0.00030136,2]
[312351276,1705815041046,-500.0,0.00030136,2]
[312351277,1705815041056,-500.0,0.00030136,2]
[312351278,1705815041066,-500.0,0.00030136,2]
[312351279,1705815041076,-500.0,0.00030136,2]
[312351280,1705815041086,-1144.36,0.00030136,2]
[312351281,1705815041097,-500.0,0.00030136,2]
[312351282,1705815041107,-500.0,0.00030136,2]
[312351283,1705815041117,-500.0,0.00030136,2]
[312351284,1705815041126,-500.0,0.00030136,2]
[312351285,1705815041136,-500.0,0.00030136,2]
[312351286,1705815041146,-500.0,0.00030136,2]
[312351287,1705815041156,-500.0,0.00030136,2]
[312351288,1705815041166,-593.2,0.00030136,2]
[312351289,1705815041176,-1077.01,0.00030136,2]
[312351290,1705815041185,-1077.01,0.00030136,2]
[312351291,1705815041195,-1077.01,0.00030136,2]
[312351292,1705815041204,-500.0,0.00030136,2]
[312351293,1705815041214,-1077.01,0.00030136,2]
[312351294,1705815041223,-1077.01,0.00030136,2]
[312351295,1705815041233,-1077.01,0.00030136,2]
[312351296,1705815041243,-500.0,0.00030136,2]
[312351297,1705815041252,-1077.01,0.00030136,2]
[312351298,1705815041261,-1077.01,0.00030136,2]
[312351299,1705815041271,-500.0,0.00030136,2]
[312351300,1705815041281,-234.30935535,0.00030136,2]
[312351301,1705815041290,-500.0,0.00030136,2]
[312351302,1705815041299,-500.0,0.00030136,2]
[312351303,1705815041309,-500.0,0.00030136,2]
[312351304,1705815041319,-1000.0,0.00030136,2]
[312351306,1705815041329,-500.0,0.00030136,2]
[312351307,1705815041341,-500.0,0.00030136,2]
[312351308,1705815041351,-563.13314171,0.00030136,2]
[312351309,1705815041361,-695.32,0.00030136,2]
[312351310,1705815041371,-2276.08,0.00030136,2]
[312351311,1705815041380,-500.0,0.00030136,2]
[312351313,1705815041390,-500.0,0.00030136,2]
[312351315,1705815041399,-500.0,0.00030136,2]
[312351317,1705815041409,-500.0,0.00030136,2]
[312351318,1705815041418,-500.0,0.00030136,2]
[312351319,1705815041428,-500.0,0.00030136,2]
[312351320,1705815041438,-500.0,0.00030136,2]
[312351321,1705815041447,-500.0,0.00030136,2]
[312351322,1705815041456,-500.0,0.00030136,2]
[312351323,1705815041466,-500.0,0.00030136,2]
[312351324,1705815041475,-522.06,0.00030136,2]
[312351325,1705815041484,-500.0,0.00030136,7]
[312351326,1705815041494,-3095.88,0.00030136,2]
[312351327,1705815041503,-500.0,0.00030136,2]
[312351328,1705815041513,-233.32188471,0.00030136,2]
[312351329,1705815041522,-560.17745745,0.00030136,2]
[312351330,1705815041532,-500.0,0.00030136,2]
[312351331,1705815041541,-500.0,0.00030136,2]
[312351332,1705815041550,-500.0,0.00030136,2]
[312351333,1705815041560,-500.0,0.00030136,2]
[312351334,1705815041569,-521.19699374,0.00030136,2]
[312351335,1705815041579,-463.93705094,0.00030136,2]
[312351336,1705815041590,-1000.0,0.00030136,5]
[312351337,1705815041600,-500.0,0.00030136,2]
[312351338,1705815041610,-500.0,0.00030136,2]
[312351339,1705815041620,-500.0,0.00030136,2]
[312351340,1705815041629,-500.0,0.00030136,2]
[312351341,1705815041638,-500.0,0.00030136,2]
[312351342,1705815041648,-500.0,0.00030136,2]
[312351343,1705815041657,-500.0,0.00030136,2]
[312351344,1705815041666,-500.0,0.00030136,2]
[312351345,1705815041675,-756.04,0.00030136,2]
[312351346,1705815041685,-500.0,0.00030136,2]
[312351347,1705815041694,-502.46105289,0.00030136,2]
[312351348,1705815041703,-168.16633334,0.00030136,2]
[312351349,1705815041714,-500.0,0.00030136,2]
[312351350,1705815041723,-500.0,0.00030136,2]
[312351351,1705815041732,-661.24,0.00030136,2]
[312351352,1705815041742,-500.0,0.00030136,2]
[312351353,1705815041751,-500.0,0.00030136,2]
[312351354,1705815041761,-500.0,0.00030136,2]
[312351355,1705815041770,-500.0,0.00030136,2]
[312351356,1705815041780,-500.0,0.00030136,2]
[312351357,1705815041790,-500.0,0.00030136,2]
[312351358,1705815041800,-500.0,0.00030136,2]
[312351359,1705815041810,-218.57426619,0.00030136,2]
[312351360,1705815041820,-500.0,0.00030136,2]
[312351361,1705815041829,-500.0,0.00030136,2]
[312351362,1705815041840,-500.0,0.00030136,2]
[312351363,1705815041849,-1657.83,0.00030136,2]
[312351364,1705815041858,-500.0,0.00030136,2]
[312351365,1705815041868,-502.74317768,0.00030136,2]
[312351366,1705815041878,-500.0,0.00030136,2]
[312351367,1705815041887,-500.0,0.00030136,2]
[312351368,1705815041896,-500.0,0.00030136,2]
[312351369,1705815041906,-382.68499965,0.00030136,2]
[312351370,1705815041915,-434.59026681,0.00030136,2]
[312351371,1705815041925,-500.0,0.00030136,2]
[312351372,1705815041934,-500.0,0.00030136,2]
[312351373,1705815041944,-500.0,0.00030136,2]
[312351374,1705815041954,-500.0,0.00030136,2]
[312351375,1705815041963,-182.86627374,0.00030136,2]
[312351376,1705815041973,-521.81338409,0.00030136,2]
[312351377,1705815041982,-500.0,0.00030136,2]
[312351378,1705815041993,-896.47,0.00030136,2]
[312351379,1705815042002,-588.63674793,0.00030136,2]
[312351380,1705815042012,-443.47998766,0.00030136,2]
[312351381,1705815042022,-500.0,0.00030136,2]
[312351382,1705815042032,-195.07770623,0.00030136,2]
[312351383,1705815042041,-29.86383743,0.00030136,2]
[312351384,1705815042063,-473.69115438,0.00030136,2]
[312351385,1705815042072,-501.75462664,0.00030136,2]
[312351386,1705815042082,-1069.26,0.00030136,2]
[312351387,1705815042092,-500.0,0.00030136,2]
[312351388,1705815042101,-500.0,0.00030136,2]
[312351389,1705815042111,-298.90422655,0.00030136,2]
[312351390,1705815042120,-220.0,0.00030136,2]
[312351391,1705815042129,-500.0,0.00030136,2]
[312351392,1705815042139,-300.73816161,0.00030136,2]
[312351393,1705815042149,-500.0,0.00030136,2]
[312351394,1705815042158,-505.60608591,0.00030136,2]
[312351395,1705815042168,-500.0,0.00030136,2]
[312351396,1705815042178,-500.0,0.00030136,2]
[312351397,1705815042188,-726.01,0.00030136,2]
[312351398,1705815042197,-500.0,0.00030136,2]
[312351399,1705815042207,-500.0,0.00030136,2]
[312351400,1705815042216,-500.0,0.00030136,2]
[312351401,1705815042226,-500.0,0.00030136,2]
[312351402,1705815042236,-500.0,0.00030136,2]
[312351403,1705815042245,-500.0,0.00030136,2]
[312351404,1705815042255,-500.0,0.00030136,2]
[312351405,1705815042264,-500.0,0.00030136,2]
[312351406,1705815042273,-500.0,0.00030136,2]
[312351407,1705815042283,-538.69538608,0.00030136,2]
[312351408,1705815042293,-500.0,0.00030136,2]
[312351409,1705815042303,-336.99499523,0.00030136,2]
[312351410,1705815042312,-500.0,0.00030136,2]
[312351411,1705815042327,-500.0,0.00030136,2]
[312351412,1705815042337,-500.0,0.00030136,2]
[312351413,1705815042346,-500.0,0.00030136,2]
[312351414,1705815042356,-509.35654559,0.00030136,2]
[312351415,1705815042366,-618.39119717,0.00030136,2]
[312351416,1705815042375,-1424.3,0.00030136,2]
[312351417,1705815042384,-500.0,0.00030136,2]